[Event "10th Amsterdam Science Park 2022"]
[Site "Amsterdam"]
[Date "2022.07.18"]
[Round "1.1"]
[White "Bous, Florian"]
[Black "Zwirs, Nico"]
[Result "0-1"]
[ECO "D35"]
[WhiteElo "2023"]
[BlackElo "2485"]
[Annotator "TA"]
[PlyCount "48"]
[EventDate "2022.07.18"]
[EventCountry "NED"]
[SourceTitle "playchess.com"]
[Source "ChessBase"]
[SourceQuality "1"]
[TimeControl "5400+30"]

{[%evp 10,48,14,17,15,13,28,34,54,30,29,18,21,-11,-8,-23,-15,-18,10,-43,0,-265,-276,-350,-340,-330,-343,-354,-347,-839,-801,-800,-820,-905,-902,-887,-859,-1581,-1590,-1439,-1332]} 1. d4 {[%emt 0:00:05]} d5 {[%emt 0:00:04]} 2. c4 {[%emt 0:00:06]} e6 {[%emt 0:00:01]} 3. Nf3 {[%emt 0:00:09]} Nf6 {[%emt 0:00:02]} 4. Nc3 {[%emt 0:00:11]} Nbd7 {[%emt 0:00:32]} 5. cxd5 {[%emt 0:01:05]} exd5 {[%emt 0:00:02]} 6. Bg5 {[%emt 0:00:10][%cal Bc1g5,Bg5h4,Bh4g3][%mdl 32]} h6 {[%emt 0:02:20] D35: Queen's Gambit Declined: Exchange Variation.} 7. Bh4 {[%emt 0:04:44]} g5 {[%emt 0:00:52]} 8. Bg3 {[%emt 0:00:04]} Bb4 {[%emt 0:00:09] White is slightly better.} 9. a3 {[%emt 0:02:32]} Bxc3+ {[%emt 0:02:35]} 10. bxc3 {[%emt 0:00:06]} Ne4 {[%emt 0:00:15] [#]} 11. e3 $146 {[%emt 0:03:24]} (11. Nd2 $5 {[%cal Rd2e4]}) ({Predecessor:} 11. Nd2 Nxg3 12. hxg3 Nf6 13. e3 c6 14. Qb3 Qe7 15. Bd3 Be6 16. Qa4 Kf8 17. Rb1 {1-0 (43) Bui,V (2408)-Kim,C (1861) Vientiane 2018}) 11... h5 $36 {[%emt 0:03:22][%mdl 2048] White must now prevent ...h4. Black fights for an advantage.} 12. h3 {[%emt 0:10:13]} Nxg3 {[%emt 0:00:33]} (12... Nxc3 13. Qc2 Ne4 14. Bxc7 $16) 13. fxg3 {[%emt 0:00:06]} Qe7 {[%emt 0:04:02]} 14. Kf2 {[%emt 0:02:40]} (14. Bd3 $11) 14... Nf6 {[%emt 0:28:05][%cal Bd7f6,Bf6g4,Bg4e3][%mdl 32]} 15. Nxg5 {[%emt 0:05:00][%mdl 8192]} (15. Bd3 $11 {and White is okay.}) 15... Rg8 $19 {[%emt 0:00:39]} 16. h4 {[%emt 0:01:48]} Ng4+ {[%emt 0:01:15][%mdl 64] Deflection, Double Attack} 17. Ke1 {[%emt 0:02:03]} Nxe3 {[%emt 0:02:55]} 18. Qxh5 {[%emt 0:03:55] [#]} Bg4 $1 {[%emt 0:00:32] Dancing on a razor blade.} ({And not} 18... Nc2+ 19. Kd2 Bf5 20. Bb5+ c6 {[#]} 21. Rhe1 $1 Nxe1 22. Rxe1 $11) 19. Qh7 $2 {[%emt 0:02:00]} (19. Qxf7+ Qxf7 20. Nxf7 Kxf7 21. Kd2) 19... Nd1+ {[%emt 0:06:24] Black is clearly winning.} 20. Ne4 {[%emt 0:02:23]} O-O-O {[%emt 0:01:57] aiming for ...Nxc3.} 21. Rxd1 {[%emt 0:04:07]} Rh8 {[%emt 0:01:02][%mdl 64] Deflection} ({Less strong is} 21... Qxe4+ 22. Qxe4 dxe4 23. Rb1 $14) ({Don't go for} 21... dxe4 $2 22. Be2 Bxe2 23. Qf5+ Kb8 24. Kxe2 $19) 22. Qg7 {[%emt 0:01:29]} Qxe4+ {[%emt 0:00:07]} 23. Kd2 {[%emt 0:00:07]} Bxd1 {[%emt 0:01:04]} 24. Bd3 {[%emt 0:00:07] Prevents Qc2+.} Qxg2+ {[%emt 0:00:06] Weighted Error Value: White=0.93/Black=0.05 (flawless)} 0-1

[Event "10th Amsterdam Science Park 2022"]
[Site "Amsterdam"]
[Date "2022.07.18"]
[Round "1.2"]
[White "Van Delft, Merijn"]
[Black "Van Nieuwkerk, Ton"]
[Result "1-0"]
[ECO "C02"]
[WhiteElo "2383"]
[BlackElo "2014"]
[Annotator "TA"]
[PlyCount "83"]
[EventDate "2022.07.18"]
[EventCountry "NED"]
[SourceTitle "playchess.com"]
[Source "ChessBase"]
[SourceQuality "1"]
[TimeControl "5400+30"]

{[%evp 13,82,0,26,0,0,0,4,14,35,27,33,29,30,35,71,70,74,65,115,130,120,88,148,146,141,143,144,144,148,123,144,74,81,71,75,77,73,73,73,62,76,77,79,71,158,152,339,18,54,62,141,0,120,0,302,151,141,63,127,130,285,255,774,731,29993,29994,29994,29986,29986,29987,29999]} 1. e4 {[%emt 0:00:05]} e6 {[%emt 0:00:12]} 2. d4 {[%emt 0:00:07]} d5 {[%emt 0:00:03]} 3. e5 {[%emt 0:01:20]} c5 {[%emt 0:00:05]} 4. c3 {[%emt 0:00:04]} Nc6 {[%emt 0:00:19]} 5. Nf3 {[%emt 0:00:09]} Bd7 {[%emt 0:00:14]} 6. Be2 {[%emt 0:00:32]} Nge7 {[%emt 0:00:22]} 7. O-O {[%emt 0:02:57]} Rc8 {[%emt 0:00:19]} 8. Kh1 {[%emt 0:15:19] C02: French: Advance Variation.} (8. dxc5 $5 {[%cal Rc3c4]} Ng6 9. Be3 $11 (9. Bg5 Be7 $11)) 8... cxd4 {[%emt 0:07:00]} 9. cxd4 {[%emt 0:00:35]} Qb6 {[%emt 0:01:42]} 10. Nc3 {[%emt 0:01:17] [#] The position is equal.} Na5 $146 {[%emt 0:05:40]} ({Predecessor:} 10... Ng6 11. Na4 Qc7 12. Ne1 Nb4 13. Nc3 Be7 14. Be3 O-O 15. Nd3 Nxd3 16. Bxd3 Bc6 {½-½ (28) Cima,R-Cast,A (2082) Mallorca 2004}) 11. Bd3 {[%emt 0:12:10]} Nec6 {[%emt 0:09:01]} 12. Na4 {[%emt 1:01:55]} Qd8 {[%emt 0:04:31]} 13. a3 {[%emt 0:00:00]} b5 {[%emt 0:14:38]} 14. Nc5 {[%emt 0:00:00]} Bxc5 {[%emt 0:15:44]} 15. dxc5 {[%emt 0:00:00]} Nc4 {[%emt 0:00:18]} (15... Rb8 $14) 16. Re1 $16 {[%emt 0:00:00]} Qc7 {[%emt 0:05:08][%cal Rc6e5]} 17. Qe2 {[%emt 0:00:00]} N6a5 {[%emt 0:02:37]} (17... N4a5 $142) 18. Bc2 {[%emt 0:00:00]} Nc6 {[%emt 0:04:47]} (18... Qxc5 $2 19. b4 Qc7 20. bxa5) 19. b3 {[%emt 0:00:00]} N4a5 {[%emt 0:00:19]} 20. Bd2 {[%emt 0:00:00]} (20. Qxb5 Nxe5 $1 21. Qe2 Nxf3 22. Qxf3 Qxc5 $15) 20... h6 {[%emt 0:04:16]} 21. Rab1 {[%emt 0:00:00]} ({Resist} 21. Qxb5 $6 Nxe5 22. Qe2 (22. Bxa5 Bxb5 23. Bxc7 Nxf3 $15) (22. Qxa5 Qxa5 23. Bxa5 Nxf3 $11) 22... Nxf3 23. Qxf3 Qxc5 $14) 21... Rb8 {[%emt 0:02:05]} 22. b4 {[%emt 0:00:00]} ({Better is} 22. Nh4) 22... Nc4 {[%emt 0:00:30]} 23. Bc1 {[%emt 0:00:00]} a5 {[%emt 0:02:29]} 24. h3 {[%emt 0:00:00]} axb4 {[%emt 0:02:08]} 25. axb4 {[%emt 0:00:00]} Ra8 {[%emt 0:00:14]} 26. Bb3 {[%emt 0:00:00]} Ke7 {[%emt 0:02:42]} 27. Bxc4 {[%emt 0:00:00]} dxc4 {[%emt 0:00:33]} 28. Qe4 {[%emt 0:00:00]} Rhd8 {[%emt 0:05:07]} (28... Kf8 $142) 29. Rd1 {[%emt 0:00:00]} Ra4 $2 {[%emt 0:01:20]} (29... Bc8 $16 30. Rxd8 Kxd8) 30. Qe1 $2 {[%emt 0:00:00]} (30. Qh7 $18 Be8 31. Rd6) 30... Be8 {[%emt 0:00:35] Hoping for ...Rxd1.} 31. Rd6 {[%emt 0:00:00]} Kf8 {[%emt 0:00:34]} (31... Qa7 $1 $14) 32. Bd2 {[%emt 0:00:00]} (32. Qe4 $1 $16 {[%cal Re4h7] Strongly threatening Qh7.} Kg8 33. Qg4) 32... Ne7 {[%emt 0:03:47] [#]} (32... Kg8 $11 {keeps the balance.}) 33. Nd4 {[%emt 0:00:00]} ({Only move:} 33. Bxh6 $1 $16 {[%mdl 512] Black must now prevent Bg5.} Rc8 (33... Rda8 34. Bd2) 34. Bg5) 33... Nc8 $2 {[%emt 0:02:51][%mdl 8192] [#]} (33... Kg8 $11 {and Black has nothing to worry.}) 34. Qe4 $1 {[%emt 0:00:00]} Kg8 {[%emt 0:02:55] [#]} (34... Nxd6 $2 35. cxd6 Rxd6 36. exd6 Qxd6 37. Qh7 $1 $18) 35. Rc1 {[%emt 0:02:31] White is much more active. The black rooks are badly placed.} ({Stronger than} 35. Rxd8 Qxd8 36. Qg4 Ne7 $15) (35. Qg4 $1 $16 Kh7 36. Rd1 (36. Rxd8 Qxd8 37. Rd1 Qc7 $11) 36... Nxd6 37. exd6) 35... Nxd6 {[%emt 0:00:41]} (35... Ra3 $1 $14) 36. exd6 {[%emt 0:00:16]} Qd7 {[%emt 0:00:12] [#]} (36... Qa7 $16 {might work better.}) 37. Rc3 $1 $18 {[%emt 0:00:29][%cal Od2h6,Bc1c3,Bc3g3,Bg3g8][%mdl 32] aiming for Bxh6!} Ra2 $2 {[%emt 0:01:38] [#]} (37... Rxb4 $2 38. Rg3 f5 39. Qe1 $18) (37... Rda8 38. Rg3 Ra3) 38. Bxh6 $1 {[%emt 0:02:04][%mdl 512]} gxh6 {[%emt 0:01:21]} (38... f5 39. Qe5) 39. Rg3+ {[%emt 0:00:43] White mates.} Kf8 {[%emt 0:00:28]} 40. Qh7 {[%emt 0:00:48][%cal Rh7h6]} Ra1+ {[%emt 0:00:18]} 41. Kh2 {[%emt 0:00:09][%cal Rh7h6]} f6 {[%emt 0:00:39]} 42. Rg8# {[%emt 0:08:00] Weighted Error Value: White=0.42/Black=0.62} 1-0

[Event "10th Amsterdam Science Park 2022"]
[Site "Amsterdam"]
[Date "2022.07.18"]
[Round "1.3"]
[White "Golbach, Floris"]
[Black "Bosboom, Manuel"]
[Result "0-1"]
[ECO "E71"]
[WhiteElo "2012"]
[BlackElo "2381"]
[Annotator "TA"]
[PlyCount "78"]
[EventDate "2022.07.18"]
[EventCountry "NED"]
[SourceTitle "playchess.com"]
[Source "ChessBase"]
[SourceQuality "1"]
[TimeControl "5400+30"]

{[%evp 13,78,31,40,40,27,0,-2,-3,-13,-39,-43,-56,-43,-53,0,0,14,0,0,-14,-21,-28,-21,-33,-39,-142,-131,-224,0,-27,-14,-70,73,81,119,120,186,112,90,91,100,19,27,18,42,20,124,0,6,-143,-130,-322,-300,-351,-338,-538,-539,-538,-536,-529,-522,-602,-596,-579,-565,-550,-529]} 1. d4 {[%emt 0:00:04]} Nf6 {[%emt 0:00:11]} 2. c4 {[%emt 0:00:08]} g6 {[%emt 0:00:30]} 3. Nc3 {[%emt 0:00:29]} Bg7 {[%emt 0:00:16]} 4. e4 {[%emt 0:00:09]} d6 {[%emt 0:00:07]} 5. h3 {[%emt 0:01:38]} O-O {[%emt 0:05:32]} 6. Bg5 {[%emt 0:00:38]} Nbd7 {[%emt 0:03:48]} 7. Bd3 {[%emt 0:03:29]} c5 {[%emt 0:02:29] has lost popularity (7...e5).} 8. d5 {[%emt 0:01:19] E71: King's Indian: 4 e4 d6 5 h3.} Ne5 {[%emt 0:03:11]} 9. Be2 {[%emt 0:02:27]} (9. Nf3 $5 {[%cal Rf3e5]}) 9... b5 {[%emt 0:07:10]} 10. cxb5 {[%emt 0:03:07] The position is equal.} a6 {[%emt 0:06:59]} 11. Nf3 {[%emt 0:12:16]} Nxf3+ {[%emt 0:05:24]} 12. gxf3 {[%emt 0:00:17]} axb5 {[%emt 0:00:34]} 13. Bxb5 {[%emt 0:01:18] [#]} Qa5 $146 {[%emt 0:03:27]} (13... Nh5 $15) ({Predecessor:} 13... h6 14. Be3 e6 15. dxe6 Bxe6 16. Qd2 Kh7 17. Rd1 Qa5 18. a4 Bb3 19. Rc1 Rfd8 {0-1 (37) Costa,J (2425)-Nemet,I (2410) Switzerland 1993}) 14. a4 $11 {[%emt 0:04:36]} Qb4 {[%emt 0:10:44][%cal Of6e4]} 15. Bd2 {[%emt 0:08:42] aiming for Ne2.} Nh5 {[%emt 0:02:10]} 16. Qc2 {[%emt 0:14:07]} Qd4 {[%emt 0:10:44]} 17. Ra3 {[%emt 0:22:12]} f5 {[%emt 0:03:11]} 18. a5 {[%emt 0:12:23]} fxe4 {[%emt 0:12:42]} 19. Qxe4 {[%emt 0:00:15]} (19. Bc6 $15 Ra6 20. Qxe4) 19... Qb4 $1 $17 {[%emt 0:02:49] And now ...Bxc3 would win.} 20. Bc6 {[%emt 0:06:32]} (20. Bc4 $17) 20... Ba6 $2 {[%emt 0:07:16]} 21. Qe6+ {[%emt 0:01:40]} (21. Qxe7 $2 Qxb2 22. Ra2 Qb3 $1 $19) 21... Kh8 {[%emt 0:00:11]} 22. Nd1 {[%emt 0:00:09]} ({Avoid the trap} 22. Bxa8 $2 Qxb2 23. Ra2 Qb3 $19) (22. Na4 $1 $11 Qc4 23. Bxa8) 22... Nf4 {[%emt 0:04:01]} (22... Qb8 $1 $15 {stays ahead.} 23. Bxa8 (23. Qxe7 Ra7 $17) 23... Qxa8) 23. Bxb4 $16 {[%emt 0:00:48]} Nxe6 {[%emt 0:01:57] [#]} 24. Bc3 $36 {[%emt 0:00:38][%mdl 2048] White has strong initiative.} ({Not} 24. Bxa8 cxb4 25. Re3 Nd4 $17) 24... Nf4 {[%emt 0:01:15]} 25. Bxg7+ {[%emt 0:00:25]} ({White should try} 25. Bxa8 $18 Rxa8 26. Ne3) 25... Kxg7 {[%emt 0:00:01]} 26. Bxa8 {[%emt 0:00:09]} Rxa8 {[%emt 0:00:06]} 27. Ne3 {[%emt 0:01:16]} (27. Kd2 $16) 27... Rb8 $11 {[%emt 0:00:16]} 28. Ra2 {[%emt 0:02:24]} h5 {[%emt 0:02:16]} 29. Kd2 {[%emt 0:00:36]} Nd3 {[%emt 0:01:27] [#]} (29... Rb4 $1 $11 {keeps the balance.}) 30. Kc3 {[%emt 0:00:29]} (30. Rb1 $1 $16) 30... Rf8 {[%emt 0:00:14]} 31. Rd1 {[%emt 0:00:34]} (31. Ra3 $11 {remains equal.}) 31... Nxf2 $17 {[%emt 0:00:34] Black is much more active.} 32. Rd2 {[%emt 0:00:43] Now White is beyond hope.} (32. Re1 $17) 32... Rxf3 $19 {[%emt 0:01:24]} 33. Rxf2 {[%emt 0:00:13]} Rxf2 {[%emt 0:00:34][%mdl 4096] Endgame KRB-KRN} 34. h4 {[%emt 0:00:28]} (34. Ra4 $142 g5 35. Re4) 34... Rf3 {[%emt 0:00:17] Black is clearly winning.} 35. Kd2 {[%emt 0:00:06]} Rf4 {[%emt 0:00:16][%cal Bf3f4,Bf4h4,Bh4d4,Bd4a4][%mdl 32] Prevents Ra4.} 36. Ra3 {[%emt 0:01:02]} Rxh4 {[%emt 0:00:12]} 37. Rb3 {[%emt 0:00:14]} Rd4+ {[%emt 0:01:17]} 38. Ke1 {[%emt 0:00:46]} h4 {[%emt 0:01:04]} 39. Kf2 {[%emt 0:00:34]} Ra4 {[%emt 0:02:31] Weighted Error Value: White=0.56/Black=0.28 (precise)} 0-1

[Event "10th Amsterdam Science Park 2022"]
[Site "Amsterdam"]
[Date "2022.07.18"]
[Round "1.4"]
[White "Blom, Vincent"]
[Black "Zhu, Chenwu"]
[Result "1-0"]
[ECO "A30"]
[WhiteElo "2325"]
[BlackElo "2010"]
[Annotator "TA"]
[PlyCount "71"]
[EventDate "2022.07.18"]
[EventCountry "NED"]
[SourceTitle "playchess.com"]
[Source "ChessBase"]
[SourceQuality "1"]
[TimeControl "5400+30"]

{[%evp 9,71,8,25,27,27,15,27,27,33,35,23,23,41,37,196,206,206,204,266,266,246,229,387,366,394,364,358,251,247,224,216,229,253,222,238,246,233,232,226,227,273,266,261,272,272,264,371,367,381,374,368,362,532,528,566,504,506,477,499,497,492,489,487,490]} 1. c4 {[%emt 0:00:03]} c5 {[%emt 0:00:32]} 2. b3 {[%emt 0:00:05]} Nf6 {[%emt 0:01:14]} 3. Bb2 {[%emt 0:00:04]} g6 {[%emt 0:01:35]} 4. Bxf6 {[%emt 0:01:03]} exf6 {[%emt 0:00:25]} 5. Nc3 {[%emt 0:00:03]} f5 {[%emt 0:02:19]} 6. g3 {[%emt 0:00:09] A30: Symmetrical English: Double Fianchetto and Hedgehog.} Bg7 {[%emt 0:01:28]} 7. Bg2 {[%emt 0:00:33]} Nc6 {[%emt 0:01:27][%cal Bb8c6,Bc6b4,Bb4d3][%mdl 32]} 8. e3 {[%emt 0:04:02] White has an edge.} Nb4 {[%emt 0:11:43][%cal Od7d5] [#]} 9. Nge2 $146 {[%emt 0:11:32]} ({Predecessor:} 9. Qb1 d5 10. cxd5 Bxc3 11. dxc3 Nxd5 12. Ne2 O-O 13. O-O Nf6 14. c4 Be6 15. Bxb7 {½-½ (57) Hillarp Persson,T (2552)-Bellon Lopez,J (2368) Vaxjo 2015}) 9... Nd3+ {[%emt 0:02:47]} 10. Kf1 {[%emt 0:00:05]} O-O {[%emt 0:01:48]} 11. a3 {[%emt 0:10:31] Black must now prevent f4.} d6 $2 {[%emt 0:07:42]} ({Better is} 11... Rb8 $14) 12. f4 $1 $18 {[%emt 0:01:22]} Rb8 {[%emt 0:19:52][%cal Ob7b5]} 13. Ra2 {[%emt 0:09:05]} d5 {[%emt 0:06:54]} 14. Bxd5 {[%emt 0:02:58]} b5 {[%emt 0:11:15] [#]} 15. Qc2 $1 {[%emt 0:04:47]} ({Stronger than} 15. cxb5 Rxb5 16. Qc2 Rb6 $11) 15... bxc4 {[%emt 0:01:40]} (15... Nb4 {was called for.} 16. axb4 cxb4) 16. bxc4 {[%emt 0:03:20]} Nb4 {[%emt 0:01:37]} 17. axb4 {[%emt 0:00:11]} cxb4 {[%emt 0:00:06] [#]} 18. Rxa7 $1 {[%emt 0:04:05]} bxc3 {[%emt 0:01:18]} 19. Nxc3 {[%emt 0:01:14]} Qb6 {[%emt 0:01:20]} 20. Ra1 {[%emt 0:03:57]} Qb2 {[%emt 0:03:42]} 21. Rc1 {[%emt 0:00:14]} Be6 {[%emt 0:03:16]} 22. Bxe6 {[%emt 0:08:12]} fxe6 {[%emt 0:00:36]} 23. Qxb2 {[%emt 0:00:05]} Rxb2 {[%emt 0:00:08]} 24. Ke2 {[%emt 0:01:45]} Rc8 {[%emt 0:03:52]} 25. Nd1 {[%emt 0:01:23]} Ra2 {[%emt 0:01:43] [#]} 26. Nf2 $1 {[%emt 0:01:05]} Bf8 {[%emt 0:02:39]} 27. Nd3 {[%emt 0:01:56]} h6 {[%emt 0:03:40]} (27... Be7 $142 28. c5 Ra6) 28. Ra1 {[%emt 0:02:37]} Rxa1 {[%emt 0:00:50]} 29. Rxa1 {[%emt 0:00:06]} Rxc4 {[%emt 0:00:22][%mdl 4096] Endgame KRB-KRN} 30. Ra6 {[%emt 0:00:33]} Re4 {[%emt 0:00:51]} (30... Bg7 {is a better defense.} 31. Rxe6 Kf7) 31. Ne5 {[%emt 0:00:58] White is clearly winning.} g5 {[%emt 0:03:04]} 32. Rxe6 {[%emt 0:00:22]} gxf4 {[%emt 0:00:33]} 33. gxf4 {[%emt 0:00:11]} Ra4 {[%emt 0:00:56]} 34. Rf6 {[%emt 0:00:15]} Ra2 {[%emt 0:00:50]} 35. Rxf5 {[%emt 0:00:11]} Bb4 {[%emt 0:00:10]} 36. Nf3 {[%emt 0:00:06] Black got outplayed after the opening.  Weighted Error Value: White=0.06 (flawless) /Black=0.37} 1-0

[Event "10th Amsterdam Science Park 2022"]
[Site "Amsterdam"]
[Date "2022.07.18"]
[Round "1.5"]
[White "Kotmans, Rob"]
[Black "Van Baar, Esper"]
[Result "0-1"]
[ECO "B26"]
[WhiteElo "2008"]
[BlackElo "2281"]
[Annotator "TA"]
[PlyCount "52"]
[EventDate "2022.07.18"]
[EventCountry "NED"]
[SourceTitle "playchess.com"]
[Source "ChessBase"]
[SourceQuality "1"]
[TimeControl "5400+30"]

{[%evp 13,52,2,7,0,0,0,0,-2,-14,-67,-60,-118,-109,-117,-103,-121,-108,-122,-100,-121,-62,-64,-54,-91,-91,-124,-124,-116,-121,-118,-136,-144,-144,-161,-157,-175,-116,-344,-325,-297,-153]} 1. e4 {[%emt 0:00:02]} c5 {[%emt 0:00:03]} 2. Nc3 {[%emt 0:00:09]} d6 {[%emt 0:00:36]} 3. g3 {[%emt 0:00:11]} Nc6 {[%emt 0:01:37][%cal Bb8c6,Bc6d4,Bd4e2][%mdl 32]} 4. Bg2 {[%emt 0:00:08]} g6 {[%emt 0:00:33]} 5. d3 {[%emt 0:00:09]} Bg7 {[%emt 0:01:01]} 6. Be3 {[%emt 0:00:22]} e6 {[%emt 0:01:44]} 7. Qd2 {[%emt 0:00:26]} Nd4 {[%emt 0:02:54]} 8. Nce2 {[%emt 0:03:49] B26: Closed Sicilian: 3 g3, lines with early Be3.} Nxe2 {[%emt 0:04:45]} 9. Nxe2 {[%emt 0:00:07]} Bxb2 {[%emt 0:01:30]} 10. Rb1 {[%emt 0:00:59] The position is equal.} Bg7 {[%emt 0:00:34] [#]} 11. c3 $146 {[%emt 0:00:07]} (11. d4 $11) ({Predecessor:} 11. d4 cxd4 12. Nxd4 Ne7 13. Nb5 d5 14. Bc5 O-O 15. O-O b6 16. Ba3 Ba6 17. Rfd1 Bxb5 18. Rxb5 {1-0 (30) Belenkaya,D (2341)-Dordzhieva,D (2311) Chess.com INT 2021}) 11... b6 $15 {[%emt 0:08:22]} 12. e5 {[%emt 0:04:36]} ({Better is} 12. c4 $15) 12... Rb8 $17 {[%emt 0:06:45]} 13. exd6 {[%emt 0:01:03]} Qxd6 {[%emt 0:00:16]} 14. d4 {[%emt 0:01:40] [#]} cxd4 {[%emt 0:08:52]} 15. cxd4 {[%emt 0:00:14]} Bb7 {[%emt 0:03:01]} 16. Bf4 {[%emt 0:01:40]} e5 {[%emt 0:14:19]} (16... Qd8 $17 17. Kf1 Bxg2+ 18. Kxg2 Rc8) 17. Bxb7 $15 {[%emt 0:00:12][%cal Od2e3]} exf4 {[%emt 0:00:55]} 18. Ba6 {[%emt 0:07:39]} fxg3 {[%emt 0:02:29]} 19. Bb5+ {[%emt 0:01:27]} Kf8 {[%emt 0:00:06] And now ...gxf2+ would win.} 20. fxg3 {[%emt 0:00:40]} Ne7 {[%emt 0:03:51]} 21. O-O {[%emt 0:02:08]} Nf5 {[%emt 0:04:49]} 22. Rbd1 {[%emt 0:06:21]} Rd8 {[%emt 0:00:48][%cal Rg7d4]} 23. Bc4 {[%emt 0:00:59]} h5 {[%emt 0:03:05]} 24. Bb3 {[%emt 0:08:33]} Rh7 {[%emt 0:08:51]} (24... Bf6 $19 25. Rf3 Kg7) 25. Nf4 $2 {[%emt 0:05:00] [#]} (25. Qf4 $17 {was worth a try.}) 25... Bxd4+ {[%emt 0:02:08]} 26. Kh1 {[%emt 0:00:09]} Qc6+ {[%emt 0:02:27] Weighted Error Value: White=0.29 (precise) /Black=0.07 (flawless)} (26... h4 $19 27. Ne6+ fxe6) 0-1